bitfinex-derivatives/quotes_SOLF0:USTF0_20241224
["timestamp","ask_amount","ask_price","bid_price","bid_amount"]
[1735024699230,50.0,191.0,190.91,3.28]
[1735024699633,50.0,191.0,190.93,2.6225]
[1735024699934,52.6217,191.0,190.93,2.6225]
[1735024700135,52.6217,191.0,190.91,3.28]
[1735024700341,50.0,191.0,190.94,2.6224]
[1735024700637,2.6217,190.99,190.94,2.6224]
[1735024702847,50.0,191.0,190.94,2.6224]
[1735024703042,52.6216,191.0,190.94,2.6224]
[1735024704651,52.6216,191.0,190.91,4.8534]
[1735024704652,50.0,191.0,190.95,2.6222]
[1735024707047,50.0,191.0,190.97,2.6219]
[1735024709353,50.0,191.0,190.99,2.6217]
[1735024711750,2.6207,191.07,191.02,2.6212]
[1735024711953,4.8104,191.13,191.02,13.20003916]
[1735024712153,2.6204,191.09,191.02,16.46003916]
[1735024712357,2.6204,191.09,191.03,2.6211]
[1735024712756,2.6206,191.08,191.03,2.6211]
[1735024713459,2.6207,191.07,191.02,3.26]
[1735024713662,0.41661,191.1,191.02,3.26]
[1735024714262,0.41661,191.1,191.01,2.6213]
[1735024715456,2.6208,191.06,191.01,2.6213]
[1735024718064,13.20003916,191.08,190.99,3.26]
[1735024718255,2.621,191.05,190.99,5.8817]
[1735024718457,13.20003916,191.08,190.95,13.20003916]
[1735024718664,16.46003916,191.08,190.95,13.20003916]
[1735024718963,2.6213,191.03,190.97,2.6219]
[1735024720263,2.6213,191.02,190.97,2.6219]
[1735024722355,4.6236,191.04,190.95,2.6222]
[1735024722356,2.6215,191.01,190.95,2.6222]
[1735024722555,4.6236,191.04,190.95,2.6222]
[1735024723066,4.6236,191.04,190.93,3.26]
[1735024723261,2.6217,191.0,190.94,2.6223]
[1735024723656,4.6236,191.04,190.89,13.20003916]
[1735024723657,13.20003916,191.02,190.89,13.20003916]
[1735024723863,13.20003916,191.02,190.9,3.26]
[1735024724061,16.46003916,191.02,190.89,16.46003916]
[1735024724464,2.6219,190.98,190.92,2.6225]
[1735024724864,16.46003916,191.02,190.89,16.46003916]
[1735024725058,2.6218,190.99,190.93,2.6224]
[1735024726158,2.6218,190.99,190.94,8.4387028]
[1735024726364,2.6218,190.99,190.94,11.0611028]
[1735024728568,2.6218,190.99,190.95,2.6222]
[1735024730574,2.6218,190.99,190.94,11.0611028]
[1735024731473,2.6218,190.99,190.94,2.6224]
[1735024734576,2.6221,190.96,190.92,2.6225]
[1735024734878,2.6221,190.96,190.9,8.4387028]
[1735024735273,2.6221,190.96,190.91,2.6226]
[1735024736169,2.6219,190.98,190.93,2.6224]
[1735024736374,8.4387028,190.98,190.9,8.4387028]
[1735024736577,8.4387028,191.0,190.92,8.4387028]
[1735024737479,2.6218,190.99,190.94,2.6223]
[1735024737780,8.4387028,191.0,190.92,8.4387028]
[1735024737981,2.6218,190.98,190.93,2.6225]
[1735024738175,11.0605028,190.98,190.93,2.6225]
[1735024738370,8.4387028,190.98,190.91,8.4387028]
[1735024738976,3.26,191.03,190.91,8.4387028]
[1735024739180,8.4387028,190.99,190.91,8.4387028]
[1735024739571,3.26,191.03,190.93,8.4387028]
[1735024739776,8.4387028,190.99,190.89,3.26]
[1735024740176,8.4387028,190.99,190.92,2.6226]
[1735024740776,8.4387028,190.95,190.89,8.4387028]
[1735024740972,8.4387028,190.95,190.88,3.26]
[1735024741578,8.4387028,190.97,190.89,8.4387028]
[1735024742082,11.0607028,190.97,190.92,2.6226]
[1735024742580,11.0605028,190.99,190.94,2.6224]
[1735024743176,8.4387028,190.99,190.91,8.4387028]
[1735024743381,2.6218,190.98,190.93,2.6225]
[1735024744482,8.4387028,191.0,190.93,8.4387028]
[1735024744778,11.0603028,191.0,190.94,2.6223]
[1735024744976,2.6216,191.0,190.94,2.6223]
[1735024745980,2.6216,191.0,190.94,11.0610028]
[1735024748983,2.6213,191.02,190.96,8.4387028]
[1735024749191,2.6213,191.02,190.98,8.4387028]
[1735024750079,4.6236,191.04,190.98,8.4387028]
[1735024750286,3.1256,191.04,191.0,2.6215]
[1735024751188,8.4387028,191.05,191.0,2.6215]
[1735024751395,11.0596028,191.05,191.0,2.6215]
[1735024752797,8.4387028,191.01,190.95,3.26]
[1735024753697,8.4387028,191.01,190.96,11.0607028]
[1735024754495,11.0601028,191.01,190.96,11.0607028]
[1735024754793,11.0601028,191.01,190.96,2.622]
[1735024754997,8.4387028,191.01,190.94,8.4387028]
[1735024755197,2.6217,191.0,190.94,11.0610028]
[1735024756597,11.0605028,190.99,190.94,2.6223]
[1735024759599,2.6221,190.96,190.9,11.0615028]
[1735024760799,2.6221,190.96,190.91,2.6228]
[1735024762506,2.6222,190.95,190.91,2.6228]
[1735024763805,11.0609028,190.95,190.91,2.6228]
[1735024764700,8.4387028,190.93,190.84,4.8151]
[1735024764906,8.4387028,190.91,190.87,2.6233]
[1735024765905,11.0616028,190.91,190.85,2.6235]
[1735024766606,2.6229,190.91,190.85,2.6235]
[1735024766807,2.6229,190.91,190.86,2.6234]
[1735024766808,11.0616028,190.91,190.86,2.6234]
[1735024767603,2.623,190.9,190.85,2.6236]
[1735024767903,8.4387028,190.87,190.79,3.042]
[1735024768104,11.0624028,190.85,190.78,11.0631028]
[1735024768308,11.0624028,190.85,190.78,8.4387028]
[1735024768506,8.4387028,190.83,190.76,8.4387028]
[1735024768811,8.4387028,190.83,190.78,2.6246]
[1735024770010,11.0626028,190.83,190.78,2.6246]
[1735024771805,11.0626028,190.83,190.77,2.6247]
[1735024773303,8.4387028,190.83,190.77,2.6247]
[1735024773505,2.624,190.82,190.77,2.6247]
[1735024778718,2.6244,190.8,190.74,2.6251]
[1735024778913,2.6244,190.8,190.73,11.5546028]
[1735024779107,8.4387028,190.79,190.67,54.52]
[1735024779311,2.6246,190.78,190.73,2.6253]
[1735024779711,2.6246,190.78,190.72,8.4387028]
[1735024779916,8.4387028,190.75,190.61,4.7545]
[1735024780220,8.4387028,190.73,190.66,8.4387028]
[1735024780607,8.4387028,190.73,190.68,2.6259]
[1735024781119,8.4387028,190.73,190.65,3.26]
[1735024781120,2.6255,190.71,190.65,2.6263]
[1735024781313,8.4387028,190.71,190.65,11.0650028]
[1735024782515,8.4387028,190.69,190.61,1.5959]
[1735024782723,8.4387028,190.67,190.61,8.4387028]
[1735024783520,8.4387028,190.67,190.62,2.6267]
[1735024785020,8.4387028,190.67,190.44,7.8877]
[1735024785217,11.0648028,190.67,190.6,2.6269]
[1735024785424,3.0258,190.68,190.61,8.4387028]
[1735024785719,8.4387028,190.69,190.63,8.4387028]
[1735024786415,11.0646028,190.69,190.63,8.4387028]
[1735024786713,8.4387028,190.69,190.59,3.28]
[1735024786919,8.4387028,190.67,190.6,8.4387028]
[1735024787913,8.4387028,190.63,190.56,8.4387028]
[1735024788810,8.4387028,190.63,190.57,2.6275]
[1735024789928,8.4387028,190.61,190.57,2.6275]
[1735024790125,15.86485117,190.64,190.57,2.6275]
[1735024791720,2.6262,190.67,190.58,13.23825117]
[1735024792126,2.6262,190.67,190.59,3.28]
[1735024793532,15.86445117,190.67,190.59,3.28]
[1735024793734,2.6262,190.66,190.59,3.28]
[1735024794032,2.6262,190.66,190.59,5.9071]
[1735024794227,13.23825117,190.67,190.59,3.28]
[1735024794427,2.6264,190.65,190.55,3.28]
[1735024795035,2.6266,190.63,190.57,2.6275]
[1735024800536,13.23825117,190.64,190.55,2.6276]
[1735024800927,2.6269,190.61,190.54,3.14]
[1735024801231,13.23825117,190.64,190.56,2.6276]
[1735024801437,13.23825117,190.64,190.54,3.14]
[1735024801640,2.6268,190.63,190.57,2.6275]
[1735024802139,13.23825117,190.67,190.54,16.37825117]
[1735024802328,7.8402,190.69,190.57,13.23825117]
[1735024802640,2.6261,190.67,190.61,2.6268]
[1735024803540,4.5602,190.69,190.59,3.28]
[1735024803742,7.1861,190.69,190.63,2.6265]
[1735024804042,7.1861,190.69,190.59,3.28]
[1735024804235,7.1861,190.69,190.63,2.6266]
[1735024804635,4.5602,190.69,190.63,2.6266]
[1735024804837,2.626,190.68,190.63,2.6266]
[1735024805741,2.6258,190.69,190.63,2.6266]
[1735024805941,13.23825117,190.7,190.59,3.28]
[1735024806339,2.6257,190.71,190.6,13.23825117]
[1735024806532,2.6257,190.71,190.64,2.6265]
[1735024806731,13.23825117,190.73,190.64,2.6265]
[1735024807038,13.23825117,190.73,190.63,2.6265]
[1735024807240,13.23825117,190.7,190.61,1.4881]
[1735024807543,2.6262,190.67,190.61,1.4881]
[1735024807741,13.23825117,190.7,190.59,3.28]
[1735024808043,2.6264,190.65,190.6,2.627]
[1735024808448,13.23825117,190.67,190.59,2.6272]
[1735024808640,2.6265,190.64,190.59,2.6272]
[1735024808843,13.23825117,190.67,190.57,3.28]
[1735024809144,2.6265,190.64,190.59,2.6272]
[1735024809640,2.6264,190.65,190.6,2.627]
[1735024810339,2.6261,190.67,190.57,16.51825117]
[1735024811035,2.6263,190.66,190.61,2.6268]
[1735024811840,2.6264,190.65,190.61,2.6268]
[1735024812142,2.6264,190.65,190.57,16.51825117]
[1735024813142,1.5999,190.68,190.57,16.51825117]
[1735024813343,2.6262,190.66,190.61,2.6269]
[1735024814049,2.6262,190.66,190.62,2.6267]
[1735024815148,1.5424,190.69,190.64,2.6264]
[1735024815350,1.5424,190.69,190.57,16.51825117]
[1735024815746,2.6261,190.68,190.62,2.6266]
[1735024816449,2.6261,190.67,190.62,2.6266]
[1735024816842,1.5424,190.69,190.57,16.51825117]
[1735024817148,2.6261,190.67,190.57,16.51825117]
[1735024818246,2.6261,190.67,190.62,2.6267]
[1735024820450,2.6261,190.67,190.63,2.6266]
[1735024820451,8.46695875,190.66,190.63,2.6266]
[1735024821354,8.46695875,190.68,190.63,2.6266]
[1735024821550,8.46695875,190.68,190.64,2.6265]
[1735024822359,3.28,190.71,190.62,8.46695875]
[1735024822557,8.46695875,190.72,190.64,8.46695875]
[1735024822764,8.46695875,190.72,190.66,8.46695875]
[1735024823261,8.46695875,190.72,190.67,2.626]
[1735024824155,2.6254,190.73,190.67,2.626]
[1735024824759,2.6254,190.73,190.64,3.28]
[1735024824962,2.6251,190.75,190.69,2.6257]
[1735024825157,2.6251,190.75,190.65,1.5547]
[1735024825663,2.6251,190.75,190.7,2.6256]
[1735024826666,13.2225826,190.76,190.65,1.5547]
[1735024826865,13.2225826,190.76,190.72,2.6253]
[1735024827977,4.1677,190.79,190.73,2.6252]
[1735024828264,2.6245,190.79,190.7,3.28]
[1735024828864,2.6245,190.79,190.74,2.625]
[1735024830669,2.6245,190.79,190.7,3.28]
[1735024830670,1.501,190.81,190.7,3.28]
[1735024830864,13.5328626,190.82,190.77,2.6247]
[1735024831070,0.31028,190.82,190.77,2.6247]
[1735024834474,0.31028,190.82,190.78,2.6245]
[1735024835170,0.31028,190.82,190.73,3.051]
[1735024835369,0.31028,190.82,190.8,2.6242]
[1735024838980,0.31028,190.82,190.81,2.6242]
[1735024839369,13.2225826,190.88,190.76,16.4825826]
[1735024839770,28.54901461,190.97,190.79,13.2225826]
[1735024839967,13.2225826,190.95,190.82,13.2225826]
[1735024840170,2.6234,190.87,190.83,3.26]
[1735024841875,2.623,190.9,190.83,3.26]
[1735024842077,13.2225826,190.92,190.85,2.6236]
[1735024843577,13.2225826,190.92,190.83,3.26]
[1735024843771,13.2225826,190.89,190.78,3.26]
[1735024844073,2.6237,190.85,190.78,3.26]
[1735024844272,8.4529174,190.84,190.78,5.8844]
[1735024844878,2.6239,190.83,190.78,5.8844]
[1735024845177,8.4529174,190.82,190.78,5.8844]
[1735024846674,11.0767174,190.84,190.79,2.6244]
[1735024848777,7.13725365,190.98,190.79,8.4529174]
[1735024848972,8.4529174,190.87,190.82,2.6239]
[1735024850581,11.0763174,190.87,190.82,2.6239]
[1735024851476,8.4529174,190.9,190.84,2.6236]
[1735024851683,8.4529174,190.9,190.83,8.4529174]
[1735024851980,8.4529174,190.92,190.88,2.6231]
[1735024852182,2.6225,190.94,190.88,2.6231]
[1735024852778,2.6225,190.93,190.88,2.6231]
[1735024854477,2.6225,190.93,190.87,2.6233]
[1735024855685,13.19515189,190.93,190.82,3.26]
[1735024856183,2.6232,190.89,190.83,2.6238]
[1735024856588,2.6232,190.88,190.83,2.6238]
[1735024856883,13.19515189,190.9,190.8,3.26]
[1735024857383,2.6234,190.87,190.81,2.624]
[1735024857785,14.75145189,190.9,190.81,2.624]
[1735024857983,2.6235,190.86,190.81,2.624]
[1735024858180,13.19515189,190.87,190.8,3.26]
[1735024858381,2.6238,190.84,190.78,2.6245]
[1735024858682,16.32295189,190.89,190.76,3.26]
[1735024858881,16.32295189,190.89,190.79,2.6243]
[1735024859380,2.6237,190.85,190.76,3.26]
[1735024859684,2.6237,190.85,190.8,2.6242]
[1735024862388,19.58295189,190.89,190.81,2.6241]
[1735024862588,19.58295189,190.89,190.76,3.26]
[1735024862786,2.6242,190.81,190.76,2.6248]
[1735024864982,1.6419,190.83,190.72,16.45515189]
[1735024865185,4.2659,190.83,190.77,2.6247]
[1735024865691,4.2659,190.83,190.72,16.45515189]
[1735024865891,4.2659,190.83,190.78,2.6246]
[1735024866882,3.26,190.88,190.72,16.45515189]
[1735024866883,13.19515189,190.87,190.72,16.45515189]
[1735024867095,2.6237,190.85,190.8,2.6242]
[1735024870391,2.6234,190.87,190.77,3.26]
[1735024871386,2.6234,190.87,190.82,2.624]
[1735024871988,1.6274,190.93,190.83,3.26]
[1735024872189,28.54901461,190.95,190.84,13.19515189]
[1735024872798,2.6224,190.94,190.89,2.623]
[1735024873100,2.6224,190.94,190.84,13.19515189]
[1735024873293,2.622,190.97,190.92,2.6225]
[1735024874690,0.35421,191.0,190.92,2.6225]
[1735024874891,2.6218,190.98,190.92,2.6225]
[1735024875088,0.35421,191.0,190.92,2.6225]
[1735024875303,2.6222,190.95,190.9,5.8828]
[1735024875902,13.19515189,190.95,190.84,1.4958]
[1735024876090,2.6227,190.92,190.83,3.26]
[1735024876993,2.623,190.9,190.83,2.6238]
[1735024877193,13.19515189,190.92,190.83,2.6238]
[1735024878500,2.6232,190.89,190.83,2.6238]
[1735024878897,2.6228,190.91,190.84,2.6236]
[1735024879405,13.19515189,190.92,190.84,2.6236]
[1735024879604,2.623,190.9,190.84,2.6236]
[1735024882704,2.6231,190.89,190.84,2.6236]
[1735024882904,2.6231,190.89,190.8,3.26]
[1735024883105,2.6231,190.89,190.83,2.6239]
[1735024884704,2.6232,190.88,190.83,2.6239]
[1735024890409,2.6232,190.88,190.8,3.26]
[1735024890611,2.6232,190.88,190.82,2.624]
[1735024892301,11.07225383,190.88,190.82,2.624]
[1735024895513,3.1151,190.94,190.81,8.44905383]
[1735024895810,2.623,190.9,190.83,8.44905383]
[1735024896709,2.6231,190.89,190.84,2.6237]
[1735024897308,11.07215383,190.89,190.83,11.07295383]
[1735024897508,2.6232,190.88,190.83,2.6239]
[1735024898103,8.44905383,190.87,190.8,3.26]
[1735024898414,8.44905383,190.87,190.74,1.4913]
[1735024898610,8.44905383,190.83,190.75,11.70905383]
[1735024899012,8.44905383,190.83,190.75,8.44905383]
[1735024900319,13.20995571,190.85,190.74,4.7513]
[1735024901514,2.6241,190.82,190.77,2.6247]
[1735024903317,2.6242,190.81,190.74,4.7513]
[1735024904319,2.6242,190.81,190.72,99.21741932]
[1735024904508,2.6242,190.81,190.77,2.6247]
[1735024911019,2.624,190.82,190.78,2.6246]
[1735024913823,2.6239,190.83,190.78,2.6246]
[1735024915726,3.0988,190.86,190.81,2.6241]
[1735024915727,4.1248,190.86,190.81,2.6241]
[1735024916024,2.6235,190.86,190.81,2.6241]
[1735024919223,4.1502,190.88,190.83,2.6238]
[1735024919422,2.6233,190.88,190.83,2.6238]
[1735024919823,16.69560571,190.91,190.78,16.46995571]
[1735024920021,3.48565,190.91,190.81,13.20995571]
[1735024920322,0.34745,190.91,190.81,13.20995571]
[1735024920526,0.34745,190.91,190.84,2.6237]
[1735024920721,0.34745,190.91,190.83,3.26]
[1735024921120,0.34745,190.91,190.86,2.6234]
[1735024923426,0.34745,190.91,190.85,8.44545966]
[1735024923630,0.34745,190.91,190.88,2.6231]
[1735024924028,0.34745,190.91,190.85,8.44545966]
[1735024924526,0.34745,190.91,190.87,8.44545966]
[1735024924928,0.34745,190.91,190.89,8.44545966]
[1735024925633,8.44545966,190.98,190.93,2.6224]
[1735024926428,8.44545966,190.98,190.92,8.44545966]
[1735024926629,8.44545966,190.98,190.94,2.6223]
[1735024926824,2.6215,191.01,190.92,8.44545966]
[1735024927029,8.44545966,191.0,190.92,8.44545966]
[1735024928428,8.44545966,191.0,190.95,2.6222]
[1735024930930,2.6215,191.01,190.92,8.44545966]
[1735024931130,8.44545966,191.01,190.96,2.6221]
[1735024931530,4.34062846,191.03,190.94,8.44545966]
[1735024931728,8.44545966,191.02,190.97,2.6218]
[1735024933838,8.44545966,191.0,190.95,2.6221]
[1735024934038,4.34062846,191.03,190.85,4.6522]
[1735024934039,8.44545966,190.98,190.92,11.70545966]
[1735024934240,8.44545966,190.96,190.9,3.26]
[1735024934934,8.44545966,190.96,190.91,2.6228]
[1735024935538,8.44545966,190.96,190.9,3.26]
[1735024935837,2.6223,190.95,190.9,3.26]
[1735024936038,8.44545966,190.96,190.9,3.26]
[1735024936243,2.6225,190.93,190.9,3.26]
[1735024937239,11.06785966,190.94,190.9,3.26]
[1735024938239,11.06785966,190.94,190.89,2.623]
[1735024939736,3.26,191.01,190.86,8.44545966]
[1735024939934,11.06795966,190.93,190.88,2.6232]
[1735024941338,2.6225,190.93,190.88,2.6232]
[1735024941740,11.06785966,190.94,190.88,2.6232]
[1735024944940,2.6222,190.96,190.9,8.44545966]
[1735024945146,3.26,191.01,190.9,8.44545966]
[1735024945346,8.44545966,190.99,190.9,8.44545966]
[1735024946545,4.34062846,191.03,190.92,8.44545966]
[1735024946841,12.78608812,191.03,190.96,8.44545966]
[1735024948254,4.34062846,191.03,190.96,8.44545966]
[1735024948445,15.40728812,191.03,190.97,2.6219]
[1735024948945,8.44545966,191.01,190.92,1.5109]
[1735024949141,8.44545966,190.97,190.91,8.44545966]
[1735024949352,8.44545966,190.95,190.89,8.44545966]
[1735024949852,8.44545966,190.95,190.9,2.6228]
[1735024950351,8.44545966,190.95,190.89,8.44545966]
[1735024950651,2.6222,190.96,190.91,2.6228]
[1735024951348,8.44545966,190.97,190.92,2.6226]
[1735024953351,8.44545966,190.97,190.93,2.6225]
[1735024954252,2.6219,190.98,190.93,2.6225]
[1735024955150,8.44545966,190.99,190.91,8.44545966]
[1735024955347,11.70545966,191.02,190.93,8.44545966]
[1735024955551,8.44545966,191.02,190.95,8.44545966]
[1735024956057,8.44545966,191.02,190.97,2.6219]
[1735024957654,8.44545966,191.0,190.93,8.44545966]
[1735024957852,8.44545966,190.98,190.92,3.26]
[1735024958046,8.44545966,190.98,190.91,11.70545966]
[1735024958450,11.06735966,190.98,190.93,2.6225]
[1735024961154,8.44545966,190.98,190.94,2.6223]
[1735024961358,8.44545966,191.0,190.94,2.6223]
[1735024962057,2.6218,190.99,190.93,2.6225]
[1735024962558,8.44545966,190.98,190.91,8.44545966]
[1735024962757,8.44545966,190.96,190.91,2.6228]
[1735024963056,8.44545966,190.96,190.89,8.44545966]
[1735024965157,8.44545966,190.98,190.92,2.6226]
[1735024965355,8.44545966,190.98,190.91,8.44545966]
[1735024966360,11.06725966,190.98,190.93,2.6225]
[1735024970265,2.622,190.97,190.91,11.06815966]
[1735024970463,3.26,191.01,190.91,2.6227]
[1735024970654,8.44545966,190.98,190.91,11.06815966]
[1735024971464,2.6221,190.97,190.92,2.6226]
[1735024971962,2.6221,190.96,190.92,2.6226]
[1735024972165,8.44545966,190.96,190.87,3.26]
[1735024972357,8.44545966,190.96,190.87,11.70545966]
[1735024973365,2.6225,190.94,190.9,2.6229]
[1735024974558,2.6225,190.94,190.89,2.623]
[1735024974765,11.06795966,190.94,190.89,2.623]
[1735024974966,8.44545966,190.94,190.87,8.44545966]
[1735024975360,8.44545966,190.92,190.85,11.70545966]
[1735024975960,8.44545966,190.89,190.83,8.44545966]
[1735024976163,3.0982,190.95,190.83,8.44545966]
[1735024976463,8.44545966,190.89,190.82,3.26]
[1735024977564,2.6232,190.88,190.83,2.6237]
[1735024983967,8.44545966,190.87,190.79,8.44545966]
[1735024984168,8.44545966,190.87,190.79,11.68545966]
[1735024984568,2.6235,190.86,190.8,2.6242]
[1735024986164,2.6234,190.87,190.82,2.624]
[1735024986672,2.6234,190.87,190.83,8.44545966]
[1735024986873,2.6232,190.89,190.83,11.06935966]
[1735024987075,8.44545966,190.92,190.85,8.44545966]
[1735024987270,8.44545966,190.94,190.87,8.44545966]
[1735024987871,3.0982,190.95,190.87,8.44545966]
[1735024988069,8.44545966,190.94,190.87,8.44545966]
[1735024988270,8.44545966,190.92,190.85,8.44545966]
[1735024988471,8.44545966,190.9,190.85,2.6235]
[1735024988977,11.06845966,190.9,190.84,2.6237]
[1735024989372,8.44545966,190.88,190.81,8.44545966]
[1735024990675,2.6235,190.86,190.81,8.44545966]
[1735024991274,2.6235,190.86,190.8,5.8642]
[1735024991676,2.6235,190.86,190.8,2.6242]
[1735024994788,2.6235,190.86,190.81,11.06965966]
[1735024994989,8.44545966,190.88,190.81,8.44545966]
[1735024995188,11.06875966,190.88,190.82,2.624]
[1735024995590,11.06875966,190.88,190.81,8.44545966]
[1735024995788,2.6231,190.89,190.83,11.06925966]
[1735025000992,2.6231,190.89,190.83,2.6238]
[1735025003788,3.0982,190.95,190.84,8.44545966]
[1735025003992,2.6229,190.91,190.86,2.6234]
[1735025004195,8.44545966,190.92,190.84,8.44545966]
[1735025005387,11.06815966,190.92,190.87,2.6233]
[1735025006702,2.6227,190.92,190.87,2.6233]
[1735025008697,8.44545966,190.93,190.86,8.44545966]
[1735025009001,2.6228,190.91,190.86,2.6235]
[1735025009498,2.6233,190.88,190.83,5.8838]
[1735025010803,8.44545966,190.89,190.83,3.26]
[1735025010998,11.06855966,190.89,190.84,2.6237]
[1735025013506,2.6231,190.89,190.84,2.6237]
[1735025015707,2.6228,190.91,190.86,2.6234]
[1735025017709,2.623,190.9,190.85,11.06905966]
[1735025018009,2.623,190.9,190.83,3.26]
[1735025018010,8.44545966,190.9,190.83,11.70545966]
[1735025018304,2.6231,190.89,190.85,8.44545966]
[1735025018509,8.44545966,190.92,190.85,8.44545966]
[1735025019510,11.06825966,190.92,190.86,2.6235]
[1735025020203,8.44545966,190.92,190.86,2.6235]
[1735025020408,2.6228,190.91,190.86,2.6235]
[1735025031220,1.5309,190.95,190.85,8.44545966]
[1735025031420,12.59875966,190.95,190.9,2.6229]
[1735025036317,11.06795966,190.93,190.88,2.6231]
[1735025038721,8.44545966,190.93,190.9,2.6229]
[1735025038928,12.59875966,190.95,190.9,2.6229]
[1735025039621,9.97635966,190.95,190.87,8.44545966]
[1735025039828,8.44545966,190.95,190.91,2.6228]
[1735025040626,8.44545966,190.95,190.92,2.6226]
[1735025044232,3.0479,190.96,190.92,2.6226]
[1735025045932,8.44545966,190.97,190.93,2.6224]
[1735025046231,12.65655966,190.99,190.93,2.6224]
[1735025046533,2.6219,190.98,190.93,2.6224]
[1735025047626,1.6263,191.02,190.96,2.6221]
[1735025047931,10.07175966,191.02,190.96,2.6221]
[1735025048530,2.6215,191.01,190.96,2.6221]
[1735025049032,2.6216,191.0,190.95,2.6222]
[1735025049432,10.07175966,191.02,190.95,2.6222]
[1735025049730,2.6214,191.01,190.95,2.6222]
[1735025050127,2.80360886,191.05,190.96,8.44545966]
[1735025050433,8.44545966,191.03,190.96,8.44545966]
[1735025050731,9.98165966,191.05,191.0,2.6215]
[1735025052030,9.98165966,191.05,190.97,2.622]
[1735025052231,8.44545966,191.03,190.97,2.622]
[1735025053034,2.6214,191.01,190.95,11.06755966]
[1735025053226,11.06685966,191.01,190.95,2.6221]
[1735025053830,11.06685966,191.01,190.94,10.02195966]
[1735025053831,8.44545966,191.01,190.94,10.02195966]
[1735025054030,2.6217,191.0,190.94,1.5765]
[1735025054736,2.6217,191.0,190.92,11.68545966]
[1735025055531,2.6217,191.0,190.94,2.6224]
[1735025055833,2.6217,191.0,190.94,11.06785966]
[1735025057133,2.6214,191.01,190.96,8.44545966]
[1735025060232,2.6216,191.0,190.96,8.44545966]
[1735025061735,2.6214,191.01,190.96,8.44545966]
[1735025068437,2.6213,191.02,190.96,11.06745966]
[1735025069438,8.44545966,191.03,190.96,8.44545966]
[1735025069638,11.06665966,191.03,190.97,2.6218]
[1735025070240,2.6209,191.05,190.98,8.44545966]
[1735025070436,2.6209,191.05,191.0,8.44545966]
[1735025072640,11.06635966,191.05,190.99,2.6216]
[1735025073341,8.44545966,191.03,190.89,1.6005]
[1735025073542,11.06695966,191.01,190.95,2.6222]
[1735025075541,2.6216,191.0,190.96,8.44545966]
[1735025075738,8.44545966,191.06,190.98,11.06715966]
[1735025076432,2.6212,191.03,190.98,11.06715966]
[1735025077538,8.44545966,191.04,190.95,3.24]
[1735025077539,2.6208,191.06,191.01,2.6214]
[1735025077740,2.6208,191.06,191.0,8.44545966]
[1735025077741,57.37173491,191.2,191.04,8.44545966]
[1735025077943,17.21471331,191.11,191.04,8.44545966]
[1735025078141,2.6204,191.09,191.04,8.44545966]
[1735025078540,8.76925365,191.11,191.04,8.44545966]
[1735025079140,1.632,191.11,191.04,8.44545966]
[1735025079544,4.2522,191.11,191.05,2.6208]
[1735025079742,2.6202,191.11,191.05,2.6208]
[1735025079936,2.6202,191.11,191.05,11.06625966]
[1735025080546,2.6202,191.1,191.05,11.06625966]
[1735025080740,1.4806,191.15,191.05,8.44545966]
[1735025080933,1.4806,191.15,191.07,8.44545966]
[1735025081139,10.03345966,191.17,191.09,8.44545966]
[1735025081836,2.6196,191.15,191.09,11.06565966]
[1735025082244,10.03345966,191.17,191.09,8.44545966]
[1735025082642,8.44545966,191.15,191.09,8.44545966]
[1735025083438,2.6198,191.13,191.09,8.44545966]
[1735025083741,1.6007,191.19,191.11,8.44545966]
[1735025084043,1.6007,191.19,191.13,8.44545966]
[1735025084543,9.96845966,191.22,191.15,8.44545966]
[1735025085037,2.6188,191.21,191.15,11.06495966]
[1735025085233,1.523,191.22,191.15,8.44545966]
[1735025085447,28.54901461,191.24,191.16,3.24]
[1735025085746,2.618,191.27,191.23,8.44545966]
[1735025086539,7.13725365,191.28,191.24,8.44545966]
[1735025086845,2.6177,191.29,191.24,8.44545966]
[1735025087036,2.6172,191.32,191.24,11.06365966]